fUST/lending_fUST_20250428
["ID","MTS","AMOUNT","RATE_DAILY","PERIOD"]
[359189154,1745794237973,-6541.91929944,0.00013699,2]
[359189156,1745794237983,-6541.91929944,0.00013699,2]
[359189158,1745794237993,-6541.91929944,0.00013699,2]
[359189160,1745794238002,-6602.66569294,0.00013699,2]
[359189161,1745794238011,-6602.66569294,0.00013699,2]
[359189162,1745794238021,-6602.66569294,0.00013699,2]
[359189163,1745794238031,-6602.66569294,0.00013699,2]
[359189164,1745794238042,-6602.66569294,0.00013699,2]
[359189165,1745794238051,-6602.66569294,0.00013699,2]
[359189166,1745794238061,-6602.66569294,0.00013699,2]
[359189167,1745794238070,-6602.66569294,0.00013699,2]
[359189168,1745794238079,-6602.66569294,0.00013699,2]
[359189169,1745794238089,-6602.66569294,0.00013699,2]
[359189170,1745794238098,-6602.66569294,0.00013699,2]
[359189171,1745794238107,-6602.66569294,0.00013699,2]
[359189172,1745794238117,-6602.66569294,0.00013699,2]
[359189173,1745794238126,-6602.66569294,0.00013699,2]
[359189174,1745794238136,-6602.66569294,0.00013699,2]
[359189175,1745794238146,-6602.66569294,0.00013699,2]
[359189176,1745794238155,-6602.66569294,0.00013699,2]
[359189177,1745794238165,-6602.66569294,0.00013699,2]
[359189178,1745794238177,-6602.66569294,0.00013699,2]
[359189179,1745794238187,-6580.6568073,0.00013699,2]
[359189180,1745794238196,-6580.6568073,0.00013699,2]
[359189181,1745794238206,-6580.6568073,0.00013699,2]
[359189182,1745794238215,-6580.6568073,0.00013699,2]
[359189183,1745794238224,-6580.6568073,0.00013699,2]
[359189184,1745794238234,-6580.6568073,0.00013699,2]
[359189185,1745794238243,-6580.6568073,0.00013699,2]
[359189186,1745794238252,-6580.6568073,0.00013699,2]
[359189187,1745794238262,-6580.6568073,0.00013699,2]
[359189188,1745794238271,-151.0,0.00013699,2]
[359189189,1745794238280,-151.0,0.00013699,2]
[359189190,1745794238290,-703.44743653,0.00014284,2]
[359189191,1745794238299,-703.44743653,0.00014969,2]
[359189192,1745794238310,-300.0,0.00014983,2]
[359189193,1745794238319,-160.0,0.00015,2]
[359189194,1745794238328,-327.0,0.00015039,2]
[359189195,1745794238337,-597.74502843,0.000155,2]
[359189196,1745794238347,-703.44743653,0.00015653,2]
[359189197,1745794238356,-597.74502842,0.00015762,2]
[359189198,1745794238365,-703.44743653,0.00016338,2]
[359189199,1745794238375,-500.0,0.00016438,2]
[359189200,1745794238384,-500.0,0.00016438,2]
[359189201,1745794238393,-501.16787456,0.00016438,2]
[359189202,1745794238402,-500.0,0.00016438,2]
[359189203,1745794238412,-500.0,0.00016438,2]
[359189204,1745794238421,-226.8558584,0.00016438,2]
[359189205,1745794238430,-503.49605397,0.00016438,2]
[359189206,1745794238440,-500.0,0.00016438,2]
[359189207,1745794238449,-500.0,0.00016438,2]
[359189208,1745794238459,-500.0,0.00016438,2]
[359189209,1745794238468,-500.0,0.00016438,2]
[359189210,1745794238477,-500.0,0.00016438,2]
[359189211,1745794238486,-501.06723243,0.00016438,2]
[359189212,1745794238495,-500.0,0.00016438,2]
[359189213,1745794238504,-500.0,0.00016438,2]
[359189214,1745794238514,-500.0,0.00016438,2]
[359189215,1745794238523,-400.0,0.00016438,2]
[359189216,1745794238532,-500.0,0.00016438,2]
[359189217,1745794238542,-400.0,0.00016438,2]
[359189218,1745794238551,-400.0,0.00016438,2]
[359189219,1745794238560,-500.0,0.00016438,2]
[359189220,1745794238570,-400.0,0.00016438,2]
[359189221,1745794238579,-597.74502842,0.00016624,2]
[359189222,1745794238588,-269.71,0.00016712,2]
[359189223,1745794238597,-400.0,0.00016712,2]
[359189224,1745794238606,-400.0,0.00016712,2]
[359189225,1745794238616,-400.0,0.00016712,2]
[359189226,1745794238625,-531.73,0.00016986,2]
[359189227,1745794238635,-400.0,0.00016986,2]
[359189228,1745794238645,-400.0,0.00016986,2]
[359189229,1745794238656,-673.55516636,0.00017161,2]
[359189230,1745794238665,-160.0,0.00017161,2]
[359189231,1745794238676,-160.0,0.00017161,2]
[359189232,1745794238686,-400.0,0.0001726,2]
[359189233,1745794238698,-427.3,0.0001726,2]
[359189234,1745794238707,-1118.32998392,0.00017301,2]
[359189235,1745794238717,-528.28,0.00017534,2]
[359189236,1745794238727,-229.789,0.000184,2]
[359189237,1745794238736,-207.4,0.00018851,2]
[359189238,1745794238747,-1000.0,0.00019152,2]
[359189239,1745794238757,-1000.0,0.00019152,2]
[359189240,1745794238766,-1000.0,0.00019152,2]
[359189241,1745794238776,-300.0,0.00019178,2]
[359189242,1745794238787,-1133.3010594,0.00019315,2]
[359189243,1745794238797,-326.0606339,0.00019716,2]
[359189244,1745794238807,-45393.6346971,0.00019717,2]
[359189282,1745794245889,-597.74502842,0.00017486,2]
[359189283,1745794245898,-597.74502842,0.00018348,2]
[359189284,1745794245908,-597.74502842,0.0001921,2]
[359189285,1745794245919,-7364.18285963,0.00019717,2]
[359189286,1745794245932,-6614.8768364,0.00019717,2]
[359189617,1745795432346,-250.0,0.00012737,2]
[359189620,1745795432356,-850.0,0.00012737,2]
[359189621,1745795432367,-150.0,0.00012737,2]
[359189622,1745795432376,-160.0,0.00015,2]
[359189623,1745795432385,-192.415483,0.00015604,2]
[359189624,1745795432395,-3404.76236678,0.00016437,6]
[359189625,1745795432405,-1200.0,0.00016437,2]
[359189626,1745795432414,-500.0,0.00016438,2]
[359189627,1745795432423,-500.0,0.00016438,2]
[359189628,1745795432433,-500.0,0.00016438,2]
[359189629,1745795432442,-500.0,0.00016438,2]
[359189630,1745795432451,-500.0,0.00016438,2]
[359189631,1745795432461,-500.0,0.00016438,2]
[359189632,1745795432470,-500.0,0.00016438,2]
[359189633,1745795432480,-283.31088164,0.00016438,2]
[359189634,1745795432489,-500.0,0.00016438,2]
[359189635,1745795432498,-500.0,0.00016438,2]
[359189636,1745795432508,-500.0,0.00016438,2]
[359189637,1745795432517,-500.0,0.00016438,2]
[359189638,1745795432526,-505.06252865,0.00016438,2]
[359189639,1745795432536,-500.0,0.00016438,2]
[359189640,1745795432545,-500.0,0.00016438,2]
[359189641,1745795432554,-400.0,0.00016438,2]
[359189642,1745795432563,-500.0,0.00016438,2]
[359189643,1745795432572,-500.0,0.00016438,2]
[359189644,1745795432582,-500.0,0.00016438,2]
[359189645,1745795432591,-500.0,0.00016438,2]
[359189646,1745795432600,-400.0,0.00016438,2]
[359189647,1745795432611,-500.0,0.00016438,2]
[359189648,1745795432622,-500.0,0.00016438,2]
[359189649,1745795432631,-500.0,0.00016438,2]
[359189650,1745795432641,-500.0,0.00016438,2]
[359189651,1745795432650,-500.0,0.00016438,2]
[359189652,1745795432659,-500.0,0.00016438,2]
[359189653,1745795432670,-400.0,0.00016438,2]
[359189654,1745795432681,-400.0,0.00016438,2]
[359189655,1745795432695,-500.0,0.00016438,2]
[359189656,1745795432709,-400.0,0.00016438,2]
[359189657,1745795432723,-327.34604186,0.00016438,2]
[359189658,1745795432736,-501.16787456,0.00016438,2]
[359189659,1745795432748,-500.0,0.00016438,2]
[359189660,1745795432761,-500.0,0.00016438,2]
[359189661,1745795432772,-400.0,0.00016438,2]
[359189662,1745795432782,-500.0,0.00016438,2]
[359189663,1745795432792,-226.8558584,0.00016438,2]
[359189664,1745795432803,-500.0,0.00016438,2]
[359189665,1745795432815,-400.0,0.00016438,2]
[359189666,1745795432826,-400.0,0.00016438,2]
[359189667,1745795432836,-500.0,0.00016438,2]
[359189668,1745795432847,-500.0,0.00016438,2]
[359189669,1745795432858,-503.49605397,0.00016438,2]
[359189670,1745795432870,-500.0,0.00016438,2]
[359189671,1745795432881,-500.0,0.00016438,2]
[359189672,1745795432893,-8212.5412588,0.00016438,2]
[359189673,1745795432904,-400.0,0.00016712,2]
[359189674,1745795432915,-400.0,0.00016712,2]
[359189675,1745795432926,-269.71,0.00016712,2]
[359189676,1745795432940,-400.0,0.00016712,2]
[359189677,1745795432953,-400.0,0.00016712,2]
[359189678,1745795432965,-400.0,0.00016712,2]
[359189679,1745795432976,-162.85708138,0.00016712,2]
[359189680,1745795432988,-400.0,0.00016712,2]
[359189681,1745795432998,-250.0,0.0001683,2]
[359189682,1745795433009,-152.0,0.00016905,2]
[359189683,1745795433020,-400.0,0.00016986,2]
[359189684,1745795433032,-400.0,0.00016986,2]
[359189685,1745795433043,-531.73,0.00016986,2]
[359189686,1745795433054,-400.0,0.00016986,2]
[359189687,1745795433065,-400.0,0.00016986,2]
[359189688,1745795433076,-400.0,0.00016986,2]
[359189689,1745795433088,-840.47993636,0.00016995,2]
[359189690,1745795433099,-500.0,0.00017159,2]
[359189691,1745795433111,-500.0,0.00017159,2]
[359189692,1745795433123,-501.06723243,0.00017159,2]
[359189693,1745795433134,-450.43536137,0.00017188,2]
[359189694,1745795433147,-165.30475295,0.00017188,2]
[359189695,1745795433158,-24900.0,0.00017189,2]
[359189696,1745795433168,-400.0,0.0001726,2]
[359189697,1745795433178,-326.77,0.0001726,2]
[359189698,1745795433189,-400.0,0.0001726,2]
[359189699,1745795433200,-400.0,0.0001726,2]
[359189700,1745795433211,-427.3,0.0001726,2]
[359189701,1745795433222,-426.35,0.00017534,2]
[359189702,1745795433234,-528.28,0.00017534,2]
[359189703,1745795433245,-400.0,0.00017534,2]
[359189704,1745795433256,-852.02376691,0.00017593,2]
[359189705,1745795433267,-400.0,0.00017808,2]
[359189706,1745795433278,-609.72245757,0.000179,2]
[359189707,1745795433292,-327.0,0.00018053,2]
[359189708,1745795433303,-400.0,0.00018082,2]
[359189709,1745795433314,-852.02376689,0.00018169,2]
[359189710,1745795433326,-400.0,0.00018356,2]
[359189711,1745795433339,-229.789,0.00018585,2]
[359189712,1745795433350,-497.59,0.0001863,2]
[359189713,1745795433362,-609.7224573,0.00018659,2]
[359189714,1745795433375,-852.02376689,0.00018746,2]
[359189715,1745795433386,-500.0,0.00018764,2]
[359189716,1745795433399,-500.0,0.00018764,2]
[359189717,1745795433410,-500.0,0.00018764,2]
[359189718,1745795433421,-501.41990258,0.00018823,2]
[359189719,1745795433432,-207.4,0.00018849,2]
[359189720,1745795433441,-500.0,0.00018859,2]
[359189721,1745795433451,-500.000001,0.0001887,2]
[359189722,1745795433461,-588.61533858,0.00019029,2]
[359189723,1745795433471,-328.593267,0.00019178,2]
[359189724,1745795433481,-300.0,0.00019178,2]
[359189725,1745795433492,-852.02376689,0.00019322,2]
[359189726,1745795433502,-609.7224573,0.00019417,2]
[359189727,1745795433513,-160.0,0.00019665,2]
[359189728,1745795433525,-160.0,0.00019665,2]
[359189729,1745795433536,-326.0606339,0.00019716,2]
[359189730,1745795433547,-3639.06174952,0.00019717,2]
[359189731,1745795433562,-26803.57384786,0.00019717,2]
[359189960,1745795441690,-0.01689465,0.00016984,2]
[359190010,1745795446208,-499.98310535,0.00016984,2]
[359190011,1745795446219,-437.91689465,0.00016984,2]
[359190017,1745795475876,200.0,0.00019717,10]
[359190018,1745795476173,200.0,0.00019717,10]
[359190019,1745795476461,200.0,0.00019717,10]
[359190020,1745795476742,200.0,0.00019717,10]
[359190021,1745795477030,200.0,0.00019717,10]
[359190022,1745795477317,200.0,0.00019717,10]
[359190023,1745795477684,200.0,0.00019717,10]
[359190024,1745795478178,200.0,0.00019717,10]
[359190025,1745795478270,200.0,0.00019717,10]
[359190026,1745795478559,200.0,0.00019717,10]
[359190027,1745795478854,200.0,0.00019717,10]
[359190028,1745795479148,200.0,0.00019717,10]
[359190029,1745795479434,200.0,0.00019717,10]
[359190030,1745795479720,200.0,0.00019717,10]
[359190031,1745795479997,200.0,0.00019717,10]
[359190032,1745795480375,200.0,0.00019717,10]
[359190033,1745795480669,200.0,0.00019717,10]
[359190034,1745795480952,200.0,0.00019717,10]
[359190036,1745795481237,200.0,0.00019717,10]
[359190037,1745795481512,200.0,0.00019717,10]
[359190038,1745795481792,200.0,0.00019717,10]
[359190039,1745795482077,200.0,0.00019717,10]
[359190040,1745795482366,200.0,0.00019717,10]
[359190041,1745795482645,200.0,0.00019717,10]
[359190042,1745795483059,200.0,0.00019717,10]
[359190043,1745795483338,200.0,0.00019717,10]
[359190044,1745795483647,200.0,0.00019717,10]
[359190045,1745795484020,200.0,0.00019717,10]
[359190046,1745795484297,200.0,0.00019717,10]
[359190047,1745795484580,200.0,0.00019717,10]
[359190048,1745795484879,200.0,0.00019717,10]
[359190049,1745795485176,200.0,0.00019717,10]
[359190050,1745795485476,200.0,0.00019717,10]
[359190051,1745795485777,200.0,0.00019717,10]
[359190052,1745795486064,200.0,0.00019717,10]
[359190053,1745795486363,200.0,0.00019717,10]
[359190054,1745795486649,200.0,0.00019717,10]
[359190055,1745795486953,200.0,0.00019717,10]
[359190056,1745795487248,253.492416,0.00019717,10]
[359190070,1745795527326,693.2,0.00020726,15]
[359190080,1745795722521,-1000.0,0.00012637,2]
[359190081,1745795722544,-250.0,0.00012637,2]
[359190082,1745795722568,-160.0,0.00015,2]
[359190083,1745795722591,-300.0,0.00016437,2]
[359190084,1745795722617,-1200.0,0.00016437,2]
[359190085,1745795722643,-400.0,0.00016438,2]
[359190086,1745795722664,-500.0,0.00016438,2]
[359190087,1745795722686,-237.40981233,0.00016438,2]
[359190088,1745795722708,-500.0,0.00016438,2]
[359190089,1745795722732,-500.0,0.00016438,2]
[359190090,1745795722756,-500.0,0.00016438,2]
[359190091,1745795722779,-500.0,0.00016438,2]
[359190092,1745795722800,-500.0,0.00016438,2]
[359190093,1745795722824,-507.26969103,0.00016438,2]
[359190094,1745795722848,-500.0,0.00016438,2]
[359190095,1745795722869,-241.66925451,0.00016712,2]
[359190096,1745795722892,-978.53873593,0.00016883,2]
[359190097,1745795722913,-500.0,0.00016982,2]
[359190098,1745795722938,-500.0,0.00016982,2]
[359190099,1745795722970,-500.0,0.00016982,2]
[359190100,1745795722993,-501.77102286,0.00016982,2]
[359190101,1745795723015,-500.0,0.00016982,2]
[359190102,1745795723046,-500.0,0.00016982,2]
[359190103,1745795723070,-500.0,0.00016982,2]
[359190104,1745795723092,-500.0,0.00016982,2]
[359190105,1745795723123,-500.0,0.00016982,2]
[359190106,1745795723147,-500.0,0.00016982,2]
[359190107,1745795723177,-500.0,0.00016982,2]
[359190108,1745795723201,-500.0,0.00016982,2]
[359190109,1745795723231,-500.0,0.00016982,2]
[359190110,1745795723255,-500.0,0.00016982,2]
[359190111,1745795723285,-500.0,0.00016982,2]
[359190112,1745795723309,-440.44175615,0.00016982,2]
[359190113,1745795723339,-500.0,0.00016982,2]
[359190114,1745795723362,-500.0,0.00016982,2]
[359190115,1745795723392,-500.0,0.00016982,2]
[359190116,1745795723421,-500.0,0.00016982,2]
[359190117,1745795723450,-500.0,0.00016982,2]
[359190118,1745795723478,-500.0,0.00016982,2]
[359190119,1745795723501,-500.0,0.00016982,2]
[359190120,1745795723530,-500.0,0.00016982,2]
[359190121,1745795723557,-500.0,0.00016982,2]
[359190122,1745795723585,-500.0,0.00016982,2]
[359190123,1745795723611,-500.0,0.00016982,2]
[359190124,1745795723638,-500.0,0.00016982,2]
[359190125,1745795723668,-500.0,0.00016982,2]
[359190126,1745795723695,-500.0,0.00016982,2]
[359190127,1745795723728,-500.0,0.00016982,2]
[359190128,1745795723760,-500.0,0.00016982,2]
[359190129,1745795723788,-500.0,0.00016982,2]
[359190130,1745795723814,-500.0,0.00016982,2]
[359190131,1745795723843,-500.0,0.00016982,2]
[359190132,1745795723871,-166.83755868,0.00016982,2]
[359190133,1745795723900,-500.0,0.00016982,2]
[359190134,1745795723928,-500.0,0.00016982,2]
[359190135,1745795723958,-500.0,0.00016982,2]
[359190136,1745795723990,-500.0,0.00016982,2]
[359190137,1745795724021,-500.0,0.00016982,2]
[359190138,1745795724050,-500.0,0.00016982,2]
[359190139,1745795724077,-500.0,0.00016982,2]
[359190140,1745795724105,-116.06216851,0.00016982,2]
[359190154,1745795947587,-250.0,0.00012537,2]
[359190155,1745795947610,-59.52655601,0.00012537,2]
[359190156,1745795952998,-250.0,0.00012437,2]
[359190157,1745795953022,-345.26577239,0.00012537,2]
[359190158,1745795965425,-161.16470176,0.00012537,2]
[359190159,1745795969795,-154.42080205,0.00012537,2]
[359190161,1745795973892,-263.62684848,0.00012537,2]
[359190162,1745795978741,-15.99531931,0.00012537,2]
[359190169,1745796018919,-156.50146426,0.00012437,2]
[359190170,1745796023854,-300.0,0.00012437,2]
[359190171,1745796026976,-255.17430411,0.00012437,2]
[359190172,1745796030216,-288.32423163,0.00012437,2]
[359190188,1745796141004,-261.59021601,0.00012437,2]
[359190190,1745796145659,-233.51131837,0.00012437,2]
[359190193,1745796150285,-266.48868163,0.00012437,2]
[359190194,1745796153030,-233.51131837,0.00012437,2]
[359190195,1745796157744,-4.89846562,0.00012437,2]
[359190209,1745796279903,-295.10153438,0.00012337,2]
[359190210,1745796282515,-156.11246392,0.00012337,2]
[359190236,1745796632130,-243.371152,0.00015873,2]
[359190237,1745796632140,-660.21748005,0.00015877,2]
[359190238,1745796632230,-3428.61371215,0.00015877,2]
[359190239,1745796632240,-250.0,0.00016337,2]
[359190240,1745796632251,-200.07,0.000165,3]
[359190241,1745796632261,-856.221394,0.00016881,2]
[359190242,1745796632272,-209.20292357,0.00016895,2]
[359190243,1745796632282,-567.1107237,0.000169,2]
[359190245,1745796632292,-300.0,0.00016949,2]
[359190247,1745796632301,-160.0,0.0001695,2]
[359190249,1745796632311,-313.23359267,0.0001695,2]
[359190250,1745796632322,-8915.86413252,0.0001695,2]
[359190258,1745796638196,-500.0,0.00016949,2]
[359190259,1745796638206,-840.47993636,0.0001695,2]
[359190260,1745796638216,-160.0,0.0001695,2]
[359190261,1745796638225,-160.0,0.0001695,2]
[359190262,1745796638235,-160.0,0.0001695,2]
[359190263,1745796638245,-79.52006364,0.0001695,2]
[359190264,1745796638258,-80.47993636,0.0001695,2]
[359190265,1745796638267,-160.0,0.0001695,2]
[359190266,1745796638276,-160.0,0.00016953,2]
[359190267,1745796638285,-160.0,0.00016953,2]
[359190268,1745796638294,-421.1409203,0.00016953,2]
[359190269,1745796638303,-207.97862514,0.00016973,2]
[359190270,1745796638313,-500.0,0.00016973,2]
[359190271,1745796638324,-500.0,0.00016973,2]
[359190272,1745796638334,-500.0,0.00016979,2]
[359190273,1745796638344,-500.0,0.00016979,2]
[359190274,1745796638353,-500.0,0.00016979,2]
[359190275,1745796638363,-500.0,0.00016979,2]
[359190276,1745796638373,-500.0,0.00016979,2]
[359190277,1745796638384,-500.0,0.00016979,2]
[359190278,1745796638394,-400.0,0.00016979,2]
[359190279,1745796638404,-500.0,0.00016979,2]
[359190280,1745796638415,-500.0,0.00016979,2]
[359190281,1745796638425,-500.0,0.00016979,2]
[359190282,1745796638434,-134.1919565,0.00016979,2]
[359190283,1745796638447,-400.07030039,0.00016979,2]
[359190284,1745796638457,-500.0,0.00016979,2]
[359190285,1745796638467,-500.0,0.00016979,2]
[359190286,1745796638476,-500.0,0.00016979,2]
[359190287,1745796638486,-500.0,0.00016979,2]
[359190288,1745796638496,-500.0,0.00016979,2]
[359190289,1745796638505,-400.0,0.00016979,2]
[359190290,1745796638514,-506.47350981,0.0001698,2]
[359190291,1745796638524,-500.0,0.0001698,2]
[359190292,1745796638533,-500.0,0.0001698,2]
[359190293,1745796638542,-500.0,0.0001698,2]
[359190294,1745796638551,-536.16550237,0.0001698,2]
[359190295,1745796638560,-110.78310323,0.0001698,2]
[359190296,1745796638572,-389.21689677,0.0001698,2]
[359190297,1745796638582,-500.0,0.0001698,2]
[359190298,1745796638591,-640.04980692,0.0001698,2]
[359190299,1745796638600,-196.26270972,0.0001698,2]
[359190300,1745796638612,-19.3588245,0.0001698,2]
[359190301,1745796638621,-500.0,0.0001698,2]
[359190302,1745796638631,-422.41995695,0.0001698,2]
[359190303,1745796638642,-77.58004305,0.0001698,2]
[359190304,1745796638651,-500.0,0.0001698,2]
[359190305,1745796638661,-224.7088573,0.0001698,2]
[359190306,1745796638677,-275.2911427,0.0001698,2]
[359190307,1745796638688,-500.0,0.00016981,2]
[359190308,1745796638697,-500.0,0.00016981,2]
[359190309,1745796638706,-500.0,0.00016981,2]
[359190310,1745796638715,-509.20536635,0.00016981,2]
[359190311,1745796638725,-500.0,0.00016981,2]
[359190312,1745796638734,-500.0,0.00016981,2]
[359190313,1745796638744,-500.0,0.00016981,2]
[359190314,1745796638752,-500.0,0.00016981,2]
[359190315,1745796638761,-451.05217715,0.00016981,2]
[359190316,1745796638770,-230.43949477,0.00016981,2]
[359190317,1745796638779,-500.0,0.00016981,2]
[359190318,1745796638788,-500.0,0.00016981,2]
[359190319,1745796638797,-215.02621654,0.00016981,2]
[359190320,1745796638806,-526.5621754,0.00016981,2]
[359190321,1745796638815,-321.42219816,0.00016981,2]
[359190322,1745796638824,-500.0,0.00016982,2]
[359190323,1745796638833,-500.0,0.00016982,2]
[359190324,1745796638842,-500.0,0.00016982,2]
[359190325,1745796638851,-525.55843372,0.00016982,2]
[359190326,1745796638860,-500.0,0.00016982,2]
[359190327,1745796638869,-500.0,0.00016982,2]
[359190328,1745796638878,-500.0,0.00016982,2]
[359190329,1745796638887,-193.38289694,0.00016982,2]
[359190330,1745796638896,-500.0,0.00016982,2]
[359190331,1745796638905,-527.52026014,0.00016982,2]
[359190332,1745796638914,-500.0,0.00016982,2]
[359190333,1745796638923,-500.0,0.00016982,2]
[359190334,1745796638933,-496.65672622,0.00016982,2]
[359190335,1745796638942,-500.0,0.00016982,2]
[359190336,1745796638951,-500.0,0.00016982,2]
[359190337,1745796638960,-502.16147587,0.00016982,2]
[359190338,1745796638969,-500.0,0.00016982,2]
[359190339,1745796638979,-500.0,0.00016982,2]
[359190340,1745796638988,-500.0,0.00016982,2]
[359190341,1745796638997,-500.0,0.00016982,2]
[359190342,1745796639006,-500.0,0.00016982,2]
[359190343,1745796639016,-500.0,0.00016982,2]
[359190344,1745796639028,-500.0,0.00016982,2]
[359190345,1745796639037,-500.0,0.00016982,2]
[359190346,1745796639047,-213.76866356,0.00016982,2]
[359190347,1745796639055,-400.0,0.00016982,2]
[359190348,1745796639065,-481.89229554,0.00016982,2]
[359190349,1745796639074,-500.0,0.00016982,2]
[359190350,1745796639084,-500.0,0.00016982,2]
[359190351,1745796639093,-500.0,0.00016982,2]
[359190352,1745796639103,-500.0,0.00016982,2]
[359190353,1745796639112,-500.0,0.00016982,2]
[359190354,1745796639122,-500.0,0.00016982,2]
[359190355,1745796639131,-500.0,0.00016982,2]
[359190356,1745796639140,-500.0,0.00016982,2]
[359190357,1745796639150,-500.0,0.00016982,2]
[359190358,1745796639160,-500.0,0.00016982,2]
[359190359,1745796639172,-500.0,0.00016982,2]
[359190360,1745796639181,-500.0,0.00016982,2]
[359190361,1745796639190,-500.0,0.00016982,2]
[359190362,1745796639199,-500.0,0.00016982,2]
[359190363,1745796639209,-500.0,0.00016982,2]
[359190364,1745796639218,-500.0,0.00016982,2]
[359190365,1745796639227,-500.0,0.00016982,2]
[359190366,1745796639236,-500.0,0.00016982,2]
[359190367,1745796639246,-500.0,0.00016982,2]
[359190368,1745796639255,-500.0,0.00016982,2]
[359190369,1745796639264,-372.63244778,0.00016982,2]
[359190370,1745796639273,-500.0,0.00016982,2]
[359190371,1745796639282,-500.0,0.00016982,2]
[359190372,1745796639291,-500.0,0.00016982,2]
[359190373,1745796639300,-170.00954078,0.00016982,2]
[359190374,1745796639309,-500.0,0.00016982,2]
[359190375,1745796639319,-500.0,0.00016982,2]
[359190376,1745796639328,-500.0,0.00016982,2]
[359190377,1745796639337,-500.0,0.00016982,2]
[359190378,1745796639346,-500.0,0.00016982,2]
[359190379,1745796639355,-500.0,0.00016982,2]
[359190380,1745796639364,-500.0,0.00016982,2]
[359190381,1745796639374,-500.0,0.00016982,2]
[359190382,1745796639383,-500.0,0.00016982,2]
[359190383,1745796639392,-369.03984278,0.00016982,2]
[359190384,1745796639402,-501.24081994,0.00016982,2]
[359190385,1745796639411,-500.0,0.00016982,2]
[359190386,1745796639420,-500.0,0.00016982,2]
[359190387,1745796639430,-500.0,0.00016982,2]
[359190388,1745796639439,-500.0,0.00016982,2]
[359190389,1745796639448,-500.0,0.00016982,2]
[359190390,1745796639458,-435.62984068,0.00016982,2]
[359190391,1745796639471,-64.37015932,0.00016982,2]
[359190392,1745796639480,-515.02928698,0.00016982,2]
[359190393,1745796639490,-500.0,0.00016982,2]
[359190394,1745796639499,-500.0,0.00016982,2]
[359190395,1745796639508,-500.0,0.00016982,2]
[359190396,1745796639517,-500.0,0.00016982,2]
[359190397,1745796639526,-500.0,0.00016982,2]
[359190398,1745796639536,-500.0,0.00016982,2]
[359190399,1745796639545,-500.0,0.00016982,2]
[359190400,1745796639555,-33.99921012,0.00016982,2]
[359190401,1745796639566,-366.00078988,0.00016982,2]
[359190402,1745796639575,-500.0,0.00016982,2]
[359190403,1745796639584,-404.61707344,0.00016982,2]
[359190425,1745796640903,-95.38292656,0.00016982,2]
[359190426,1745796640913,-500.0,0.00016982,2]
[359190427,1745796640922,-500.0,0.00016982,2]
[359190428,1745796640932,-500.0,0.00016982,2]
[359190429,1745796640941,-500.0,0.00016982,2]
[359190430,1745796640950,-500.0,0.00016982,2]
[359190431,1745796640962,-500.0,0.00016982,2]
[359190432,1745796640971,-500.0,0.00016982,2]
[359190433,1745796640980,-500.0,0.00016982,2]
[359190434,1745796640990,-500.0,0.00016982,2]
[359190435,1745796640999,-500.0,0.00016982,2]
[359190436,1745796641009,-500.0,0.00016982,2]
[359190437,1745796641019,-500.0,0.00016982,2]